bitfinex/quotes_ETHUSD_20241120
["timestamp","ask_amount","ask_price","bid_price","bid_amount"]
[1732088180101,0.8234,3110.1,3109.6,3.94558054]
[1732088180341,4.03877,3110.1,3109.5,3.21594]
[1732088181145,0.8234,3110.1,3109.6,3.21583]
[1732088181829,0.8234,3110.1,3109.8,3.21561]
[1732088183239,0.8234,3110.1,3109.6,6.4316]
[1732088183446,0.8234,3110.1,3109.6,3.21577]
[1732088183608,0.8234,3110.1,3109.6,3.21576]
[1732088183803,3.21506,3110.4,3109.2,3.8018]
[1732088183804,3.21502,3110.4,3109.7,4.01751]
[1732088184105,3.21517,3110.3,3109.7,0.8018]
[1732088184309,3.21517,3110.3,3109.7,3.21573]
[1732088184511,3.21517,3110.3,3109.3,3.917962]
[1732088184512,0.8234,3110.1,3109.3,3.917962]
[1732088184738,3.2155,3110.0,3109.4,3.21604]
[1732088185433,3.2155,3110.0,3109.3,3.917862]
[1732088185632,4.03873,3110.1,3109.5,3.21594]
[1732088188133,7.25415,3110.1,3109.5,3.21594]
[1732088188468,4.03873,3110.1,3109.5,3.21594]
[1732088190160,0.8234,3110.1,3109.7,3.21572]
[1732088190581,0.8234,3110.1,3109.5,3.61467062]
[1732088191292,0.8234,3110.1,3109.6,3.21584]
[1732088191456,0.8234,3110.1,3109.6,6.59484]
[1732088191659,0.8234,3110.1,3109.6,3.21584]
[1732088191859,4.03876,3110.1,3109.5,0.39879062]
[1732088192084,4.03876,3110.1,3109.5,3.21592]
[1732088193089,4.03876,3110.1,3109.5,6.43179]
[1732088193291,4.03876,3110.1,3109.5,3.21587]
[1732088193494,4.03876,3110.1,3109.6,3.21582]
[1732088193892,4.03876,3110.1,3109.5,3.21593]
[1732088195183,0.8234,3110.1,3109.6,3.21583]
[1732088195781,0.8234,3110.1,3109.5,0.321593]
[1732088196112,3.21555,3109.9,3109.5,0.321593]
[1732088196315,3.2158,3109.7,3109.2,3.2162]
[1732088196524,3.2158,3109.7,3109.1,3.21634]
[1732088196806,0.7509,3109.8,3109.1,3.21628]
[1732088197013,3.96654,3109.8,3109.3,3.21615]
[1732088197567,3.96654,3109.8,3109.1,3.62109955]
[1732088197568,0.7509,3109.8,3109.1,3.62109955]
[1732088197931,3.96655,3109.8,3109.3,3.21615]
[1732088198396,0.7509,3109.8,3109.4,3.21604]
[1732088198599,3.96628,3110.1,3109.5,3.21587]
[1732088198782,3.96628,3110.1,3109.6,3.21584]
[1732088198988,0.7509,3110.1,3109.6,3.21584]
[1732088199172,0.7509,3110.1,3109.7,3.21573]
[1732088199570,0.06349508,3110.3,3109.9,3.98311]
[1732088200302,3.27861508,3110.3,3109.9,0.7676]
[1732088201624,0.06349508,3110.3,3109.9,0.7676]
[1732088201833,0.06349508,3110.3,3109.9,3.98313]
[1732088202057,0.06349508,3110.3,3109.9,0.7676]
[1732088203048,0.06349508,3110.3,3109.9,3.98309]
[1732088203847,0.06349508,3110.3,3109.9,4.381359]
[1732088204863,0.06349508,3110.3,3110.1,3.21532]
[1732088205163,0.06349508,3110.3,3109.9,4.381359]
[1732088206661,0.06349508,3110.3,3109.9,3.613809]
[1732088207273,0.06349508,3110.3,3109.9,3.2155]
[1732088208971,0.06349508,3110.3,3109.7,4.0179]
[1732088209276,0.827,3110.2,3109.7,3.2157]
[1732088209965,4.04223,3110.2,3109.7,3.2157]
[1732088210667,0.827,3110.2,3109.8,3.21559]
[1732088211067,0.827,3110.2,3109.7,3.2157]
[1732088211452,0.827,3110.2,3109.7,3.21564]
[1732088212670,3.27862508,3110.3,3110.0,3.21537]
[1732088212671,0.06349508,3110.3,3110.0,3.21537]
[1732088213044,0.06349508,3110.3,3110.0,4.01537]
[1732088213372,0.06349508,3110.3,3110.2,3.21522]
[1732088220188,0.06349508,3110.3,3109.5,3.379]
[1732088220189,0.06349508,3110.3,3109.8,4.01563]
[1732088220474,0.06349508,3110.3,3109.8,3.21556]
[1732088221138,0.8048,3110.2,3109.6,3.21581]
[1732088221370,0.8048,3110.1,3109.3,3.21608]
[1732088221551,0.8048,3109.9,3109.1,0.8]
[1732088221761,4.02034,3109.9,3109.3,3.21606]
[1732088221948,4.743924,3109.9,3109.3,3.21606]
[1732088222302,4.743924,3109.9,3108.7,3.21673]
[1732088222303,3.21576,3109.7,3109.2,3.21626]
[1732088222455,3.21576,3109.7,3108.9,3.21651]
[1732088222456,4.02065,3109.6,3109.0,3.21638]
[1732088222650,0.8048,3109.6,3108.9,3.21651]
[1732088222979,0.8048,3109.6,3109.1,3.21635]
[1732088223681,0.8048,3109.6,3109.2,3.21621]
[1732088223998,0.8048,3109.6,3109.3,3.21608]
[1732088224351,3.21546,3110.0,3109.3,3.21608]
[1732088224550,3.21564,3109.8,3109.3,3.21608]
[1732088224762,3.21564,3109.8,3109.1,3.21636]
[1732088224996,0.8048,3109.7,3109.1,3.21636]
[1732088225290,0.8048,3109.7,3109.2,3.21624]
[1732088226274,0.8048,3109.7,3109.3,3.21612]
[1732088226689,0.8048,3109.7,3109.4,3.21603]
[1732088226871,0.8048,3109.7,3109.5,3.2159]
[1732088227398,0.8048,3109.7,3109.3,3.21607]
[1732088228987,0.8048,3109.7,3109.4,3.21599]
[1732088229983,0.8048,3109.7,3109.4,6.43198]
[1732088230159,0.8048,3109.7,3109.4,3.21599]
[1732088231375,0.8048,3109.7,3109.2,3.21622]
[1732088231710,0.8048,3109.7,3109.1,3.0]
[1732088232008,3.21587,3109.6,3109.1,3.0]
[1732088233109,0.8048,3109.7,3109.0,3.21639]
[1732088233262,3.21588,3109.6,3109.0,3.21639]
[1732088233699,3.21595,3109.5,3109.0,3.21639]
[1732088234550,0.8048,3109.7,3109.1,3.21629]
[1732088235099,3.21585,3109.6,3109.1,3.21629]
[1732088235430,4.02058,3109.7,3109.1,3.21629]
[1732088235633,3.21587,3109.6,3109.1,3.21629]
[1732088236516,3.21598,3109.5,3108.9,3.21655]
[1732088236716,3.21611,3109.4,3108.8,3.0]
[1732088236921,0.8074,3109.1,3108.8,3.0]
[1732088237447,0.8074,3109.1,3108.6,3.0]
[1732088237648,0.8074,3109.1,3108.6,3.396703]
[1732088237848,0.8074,3109.1,3108.6,6.613533]
[1732088238201,0.8074,3109.1,3108.7,3.21674]
[1732088238818,0.8074,3109.1,3108.8,3.21657]
[1732088239001,0.8074,3109.1,3108.9,3.21657]
[1732088239417,4.02384,3109.1,3108.6,0.396703]
[1732088239641,3.21664,3108.9,3108.4,0.7501]
[1732088239882,2.14691978,3109.1,3108.4,0.7501]
[1732088240050,3.21648,3109.0,3108.4,4.663861]
[1732088240416,3.21661,3108.9,3108.4,4.663861]
[1732088240817,2.14691978,3109.1,3108.4,0.696731]
[1732088241021,3.21646,3109.0,3108.5,3.21695]
[1732088241659,0.8074,3109.4,3108.6,4.1291]
[1732088241824,4.02351,3109.4,3108.6,0.81443263]
[1732088242025,4.02351,3109.4,3108.7,0.44227307]
[1732088242242,4.02351,3109.4,3108.8,3.21666]
[1732088242753,3.21617,3109.3,3108.7,0.44227307]
[1732088242949,3.21627,3109.2,3108.7,0.44227307]
[1732088243421,3.21617,3109.3,3108.7,3.65904307]
[1732088243616,4.02346,3109.4,3108.8,3.21658]
[1732088243816,4.02346,3109.4,3108.8,3.95749431]
[1732088244117,4.02346,3109.4,3108.9,3.21656]
[1732088244317,0.8074,3109.4,3108.8,0.74091431]
[1732088244528,0.8074,3109.4,3109.0,3.21642]
[1732088245123,4.02347,3109.4,3108.8,3.95757431]
[1732088245620,3.21616,3109.3,3108.8,3.95757431]
[1732088245921,3.21628,3109.2,3108.6,3.96694]
[1732088246374,3.21628,3109.2,3108.7,3.21676]
[1732088247133,3.21628,3109.2,3108.6,3.96694]
[1732088247341,3.21628,3109.2,3108.6,3.9669]
[1732088247665,3.21628,3109.2,3108.7,3.21677]
[1732088248223,7.23962,3109.4,3108.7,3.21677]
[1732088248462,4.02349,3109.4,3108.7,3.21677]
[1732088249049,0.8074,3109.4,3108.9,3.21655]
[1732088249259,0.06349508,3109.5,3109.0,0.321655]
[1732088249434,0.06349508,3109.5,3109.0,1.072755]
[1732088249838,0.06349508,3109.5,3109.1,3.21627]
[1732088250969,0.06349508,3109.5,3109.4,3.21605]
[1732088251830,0.06349508,3109.5,3109.4,3.96715]
[1732088252032,0.06349508,3109.5,3109.4,6.96715]
[1732088252232,0.06349508,3109.5,3109.4,8.65142842]
[1732088253124,0.06349508,3109.5,3109.4,12.03042842]
[1732088253985,0.06349508,3109.5,3109.4,8.65142842]
[1732088255318,0.06349508,3109.5,3109.4,12.03042842]
[1732088255925,0.06349508,3109.5,3109.4,8.65142842]
[1732088256234,0.06349508,3109.5,3109.4,5.65142842]
[1732088256536,0.06349508,3109.5,3109.4,3.96715]
[1732088257042,0.06349508,3109.5,3109.2,3.21616]
[1732088257196,0.06349508,3109.5,3109.3,3.0]
[1732088257388,0.06349508,3109.5,3109.1,3.0]
[1732088257889,0.06349508,3109.5,3109.1,6.2163]
[1732088258533,0.06349508,3109.5,3109.2,3.21624]
[1732088258742,0.06349508,3109.5,3109.3,3.2161]
[1732088259820,0.06349508,3109.5,3109.4,3.21605]
[1732088260033,0.06349508,3109.5,3109.4,3.54408674]
[1732088262593,0.06349508,3109.5,3109.4,0.32803674]
[1732088262798,0.06349508,3109.5,3109.2,3.21619]
[1732088265458,0.06349508,3109.5,3109.3,3.21613]
[1732088266312,0.06349508,3109.5,3109.2,3.21626]
[1732088269017,0.06349508,3109.5,3109.3,3.21613]
[1732088269217,0.06349508,3109.5,3109.3,3.9612072]
[1732088269821,0.06349508,3109.5,3109.3,3.21613]
[1732088270031,0.06349508,3109.5,3109.4,4.09136751]
[1732088270228,0.06349508,3109.5,3109.4,7.02705]
[1732088277086,0.06349508,3109.5,3109.4,3.21605]
[1732088280962,0.06349508,3109.5,3109.4,4.09136186]
[1732088281271,0.06349508,3109.5,3109.4,5.16000705]
[1732088281640,0.06349508,3109.5,3109.4,5.09569519]
[1732088281882,0.06349508,3109.5,3109.4,8.47469519]
[1732088282083,0.06349508,3109.5,3109.4,5.09569519]
[1732088282380,0.06349508,3109.5,3109.4,4.28469519]
[1732088282584,0.06349508,3109.5,3109.4,3.21605]
[1732088283441,0.06349508,3109.5,3109.1,3.21628]
[1732088283650,0.803,3109.4,3109.1,3.21628]
[1732088284990,0.803,3109.4,3109.2,3.21619]
[1732088285580,0.803,3109.4,3109.0,3.21638]
[1732088285879,0.803,3109.4,3109.1,6.21632]
[1732088286048,0.803,3109.4,3109.2,3.21618]
[1732088286246,0.803,3109.4,3109.1,6.21632]
[1732088288667,0.803,3109.4,3109.2,3.21617]
[1732088288874,0.803,3109.4,3109.3,3.21615]
[1732088289278,0.06349508,3109.5,3109.3,3.21608]
[1732088289594,0.06349508,3109.5,3109.3,6.43215]
[1732088289796,0.06349508,3109.5,3109.3,3.21607]
[1732088290709,0.06349508,3109.5,3109.3,6.43214]
[1732088290911,0.06349508,3109.5,3109.3,3.21607]
[1732088291084,0.06349508,3109.5,3109.4,3.21605]
[1732088294520,0.06349508,3109.5,3109.2,6.43244]
[1732088294704,0.06349508,3109.5,3109.3,3.21614]
[1732088296200,0.06349508,3109.5,3109.0,6.2164]
[1732088296413,0.06349508,3109.5,3109.0,7.25704]
[1732088296786,0.06349508,3109.5,3109.2,3.21617]
[1732088297510,0.06349508,3109.5,3109.2,6.43236]
[1732088297686,0.06349508,3109.5,3109.2,3.21617]
[1732088298021,0.06349508,3109.5,3109.3,3.21615]
[1732088300731,0.06349508,3109.5,3109.4,3.21605]
[1732088304321,0.06349508,3109.5,3109.2,3.21617]
[1732088305028,0.06349508,3109.5,3109.1,6.21634]
[1732088305232,0.06349508,3109.5,3109.2,3.21625]
[1732088306040,3.98809,3109.4,3108.8,3.97602]
[1732088306193,0.772,3109.4,3109.0,3.21645]
[1732088306395,3.98806,3109.4,3108.8,3.21658]
[1732088306613,3.98806,3109.4,3108.8,3.62758435]
[1732088307224,3.98806,3109.4,3108.8,6.84419435]
[1732088307535,3.98806,3109.4,3108.9,3.21652]
[1732088307695,3.98806,3109.4,3108.8,3.21658]
[1732088308198,3.98806,3109.4,3108.9,3.21656]
[1732088308871,0.772,3109.4,3109.0,3.21641]
[1732088309734,0.772,3109.4,3109.1,3.21633]
[1732088310539,0.772,3109.4,3109.0,3.21641]
[1732088311928,0.772,3109.4,3108.8,3.21666]
[1732088312145,0.772,3109.4,3108.8,6.43324]
[1732088312318,3.98807,3109.4,3108.8,3.21658]
[1732088312515,0.772,3109.4,3108.9,0.06432664]
[1732088312733,0.772,3109.4,3108.8,3.621188]
[1732088312931,0.772,3109.4,3108.8,3.621158]
[1732088313144,3.98806,3109.4,3108.8,3.621158]
[1732088313421,0.06349508,3109.5,3108.4,3.21708]
[1732088313422,3.9884,3109.1,3108.4,3.21708]
[1732088313753,0.772,3108.8,3108.3,3.21715]
[1732088314854,3.98875,3108.8,3108.1,3.21733]
[1732088315060,0.772,3108.8,3108.3,3.21708]
[1732088315926,4.62852353,3109.5,3108.0,0.742567]
[1732088315927,1.33903845,3108.6,3108.0,0.742567]
[1732088316272,0.772,3108.5,3108.0,3.21747]
[1732088316438,4.55619845,3108.4,3107.7,3.21771]
[1732088316622,3.21719,3108.3,3107.7,3.21771]
[1732088317084,3.21719,3108.3,3107.8,3.2177]
[1732088317227,3.21719,3108.3,3107.7,3.21771]
[1732088317426,3.21719,3108.3,3107.8,3.2177]
[1732088317728,2.1935483,3108.4,3107.8,3.2177]
[1732088317729,5.4107283,3108.4,3107.8,3.2177]
[1732088318826,5.4107283,3108.4,3107.7,3.21778]
[1732088319022,3.21721,3108.3,3107.7,3.21778]
[1732088319226,0.772,3108.9,3108.2,3.21726]
[1732088319471,3.21675,3108.8,3108.2,3.21726]
[1732088319640,3.937273,3108.8,3108.2,3.21726]
[1732088319972,3.937273,3108.8,3108.0,3.21746]
[1732088319973,3.21678,3108.7,3108.0,3.21746]
[1732088320178,3.937273,3108.8,3108.0,3.21746]
[1732088320339,3.937273,3108.8,3107.8,5.38579845]
[1732088320340,0.833,3108.5,3107.9,3.0]
[1732088321581,3.21715,3108.4,3107.9,3.0]
[1732088322131,0.833,3108.5,3108.0,3.21749]
[1732088322577,4.04999,3108.5,3107.9,3.0]
[1732088322735,1.60678173,3108.5,3107.9,6.21753]
[1732088323631,4.82376173,3108.5,3107.9,6.21753]
[1732088323896,4.04998,3108.5,3107.9,6.21753]
[1732088324534,0.833,3108.5,3108.0,3.21746]
[1732088325393,0.833,3108.5,3107.9,3.0]
[1732088325394,0.833,3108.5,3108.1,3.21733]
[1732088326088,0.833,3108.5,3108.2,3.21723]
[1732088326383,0.833,3108.5,3108.3,3.21718]
[1732088327272,0.7727,3108.9,3108.4,3.21708]
[1732088327584,0.7727,3108.9,3108.3,3.21716]
[1732088328029,0.7727,3108.9,3108.5,3.21697]
[1732088328203,0.7727,3108.9,3108.4,3.21708]
[1732088328584,0.7727,3108.9,3108.5,3.21696]
[1732088329226,0.7727,3108.9,3108.3,6.43428]
[1732088329389,0.7727,3108.9,3108.3,7.077708]
[1732088329721,0.7727,3108.9,3108.4,3.21704]
[1732088330430,3.98927,3108.9,3108.3,0.643428]
[1732088330625,3.98927,3108.9,3108.2,3.21722]
[1732088331123,3.21678,3108.7,3108.1,3.21735]
[1732088331325,0.7727,3108.6,3108.1,3.21735]
[1732088332207,3.98961,3108.6,3108.1,3.21735]
[1732088334294,3.21714,3108.4,3108.0,3.0]
[1732088334544,3.21727,3108.3,3107.5,4.03264]
[1732088334692,0.7727,3108.0,3107.5,3.959104]
[1732088334891,0.7727,3108.0,3107.5,3.21794]
[1732088335338,0.7727,3108.0,3107.6,3.2179]
[1732088335723,0.7727,3108.0,3107.7,3.21775]
[1732088336422,0.7727,3108.0,3107.8,6.43536]
[1732088336763,0.7727,3108.0,3107.8,3.21768]
[1732088338152,0.7727,3108.3,3107.7,3.21781]
[1732088338379,0.7727,3108.3,3107.9,3.21758]
[1732088338551,0.7727,3108.3,3107.7,4.03251]
[1732088338721,3.98989,3108.3,3107.7,4.03251]
[1732088339424,3.2173,3108.2,3107.5,7.25061]
[1732088339732,0.7727,3108.0,3107.6,3.0]
[1732088339944,0.7727,3108.0,3107.4,6.2181]
[1732088340149,0.7727,3108.0,3107.5,3.21801]
[1732088340548,0.7727,3108.0,3107.6,3.0]
[1732088341359,0.7727,3108.0,3107.6,6.21783]
[1732088343059,0.7727,3108.0,3107.6,9.43567]
[1732088343564,0.7727,3108.0,3107.6,6.21783]
[1732088344662,0.83619508,3108.0,3107.6,6.21783]
[1732088344956,0.83619508,3108.0,3107.7,3.21278]
[1732088345155,0.83619508,3108.0,3107.6,6.21783]
[1732088346228,0.83619508,3108.0,3107.7,3.21779]
[1732088346827,0.06349508,3108.0,3107.8,3.21763]
[1732088347032,0.06349508,3108.0,3107.9,3.2176]
[1732088348266,0.06349508,3108.0,3107.8,4.161222]
[1732088348473,0.06349508,3108.0,3107.8,3.21768]
[1732088350167,0.7821,3107.9,3107.6,6.21791]
[1732088353175,0.7821,3107.9,3107.7,3.21779]
[1732088354026,0.7821,3107.9,3107.5,3.06435332]
[1732088354227,0.7821,3107.9,3107.6,3.21782]
[1732088354824,0.7821,3107.9,3107.6,6.43565]
[1732088355003,0.7821,3107.9,3107.7,3.2178]
[1732088355535,0.7821,3107.9,3107.6,3.21782]
[1732088355715,0.06349508,3108.0,3107.9,3.2176]
[1732088359806,0.06349508,3108.0,3107.9,3.28194382]
[1732088360732,0.8035,3108.5,3108.1,3.2173]
[1732088360938,0.8035,3108.5,3108.3,3.21719]
[1732088361499,0.8035,3108.9,3108.4,3.21708]
[1732088361732,0.8035,3108.9,3108.5,3.21698]
[1732088361929,0.8035,3108.9,3108.7,3.21677]
[1732088362232,0.8035,3108.9,3108.5,3.21689]
[1732088362436,0.8035,3108.9,3108.6,3.21687]
[1732088362606,0.8035,3108.9,3108.6,6.43368]
[1732088362932,0.8035,3108.9,3108.6,3.21681]
[1732088364750,0.8035,3108.9,3108.6,6.4336]
[1732088365316,0.8035,3108.9,3108.6,3.21679]
[1732088365936,0.8035,3108.9,3108.6,3.21681]
[1732088368101,0.8035,3108.9,3108.3,3.0]
[1732088368334,4.02013,3108.9,3108.3,6.21716]
[1732088368713,4.02013,3108.9,3108.4,3.21706]
[1732088369117,0.8035,3108.9,3108.4,3.21706]
[1732088369323,0.8035,3108.9,3108.5,3.21692]
[1732088372359,0.8035,3108.9,3108.7,3.21675]
[1732088373955,0.06349508,3109.0,3108.7,3.21675]
[1732088376340,0.06349508,3109.0,3108.7,6.43344]
[1732088376571,0.06349508,3109.0,3108.5,0.7572]
[1732088376929,0.06349508,3109.0,3108.7,3.21669]
[1732088377680,0.06349508,3109.0,3108.8,3.21665]
[1732088379668,0.06349508,3109.0,3108.9,3.21657]
[1732088379857,0.06349508,3109.0,3108.9,3.97377]
[1732088382461,0.06349508,3109.0,3108.9,8.75712942]
[1732088382659,0.06349508,3109.0,3108.9,11.69280845]
[1732088385104,0.06349508,3109.0,3108.9,8.31280845]
[1732088385244,0.06349508,3109.0,3108.9,8.52217381]
[1732088386055,0.06349508,3109.0,3108.9,9.86121226]
[1732088391194,0.06349508,3109.0,3108.9,8.52217381]
[1732088391550,0.06349508,3109.0,3108.9,11.90217381]
[1732088392060,0.06349508,3109.0,3108.9,3.21657]
[1732088392281,0.06349508,3109.0,3108.9,8.80443314]
[1732088392580,0.06349508,3109.0,3108.9,8.74010845]
[1732088393182,0.06349508,3109.0,3108.9,3.21657]
[1732088393361,0.06349508,3109.0,3108.8,3.21663]
[1732088394782,0.06349508,3109.0,3108.6,3.21686]
[1732088395149,0.8125,3108.9,3108.6,3.21686]
[1732088395889,0.8125,3108.9,3108.5,3.21697]
[1732088396084,0.8125,3108.9,3108.6,3.21686]
[1732088396446,0.8125,3108.9,3108.5,3.21697]
[1732088398013,0.8125,3108.9,3108.3,3.21717]
[1732088398014,0.7787,3108.7,3108.3,3.21717]
[1732088398298,0.7787,3108.7,3108.1,3.21735]
[1732088398299,0.7787,3108.6,3108.1,3.21735]
[1732088398869,0.7787,3108.6,3107.6,2.13293845]
[1732088398870,0.7787,3108.4,3107.6,0.7939]
[1732088399082,0.7787,3108.4,3107.9,1.33903845]
[1732088399283,0.7787,3108.4,3108.1,3.21732]
[1732088399715,0.7787,3108.4,3108.1,6.43464]
[1732088399872,0.7787,3108.4,3108.2,3.21723]
[1732088400297,0.7787,3108.4,3108.3,3.21719]
[1732088400493,4.61903353,3109.0,3108.3,3.21711]
[1732088400494,0.7787,3108.6,3108.3,3.21711]
[1732088401070,0.7787,3108.6,3108.5,3.21698]
[1732088401276,1.33903845,3108.6,3107.9,3.21751]
[1732088401613,0.7787,3108.5,3107.8,3.21767]
[1732088401910,0.7787,3108.3,3107.9,3.21753]
[1732088402625,0.7787,3108.3,3108.0,3.28176585]
[1732088402764,0.7787,3108.3,3108.1,3.21733]
[1732088402972,0.7787,3108.3,3108.0,3.21742]
[1732088403908,0.7787,3108.3,3108.1,3.21732]
[1732088404206,0.7787,3108.6,3108.1,3.86081]
[1732088404397,0.7787,3108.6,3108.1,3.21732]
[1732088404712,0.7787,3108.6,3108.2,3.21727]
[1732088406084,0.7787,3108.6,3108.3,3.21717]
[1732088406398,0.7787,3108.6,3108.2,3.21722]
[1732088406784,3.27996508,3109.0,3108.2,3.21721]
[1732088406999,0.7787,3108.9,3108.5,3.21692]
[1732088407572,0.7787,3108.9,3108.6,3.21686]
[1732088408171,0.7787,3108.9,3108.6,3.21678]
[1732088408374,0.7787,3108.9,3108.5,3.21695]
[1732088409387,0.7787,3108.9,3108.4,4.01095]
[1732088409388,0.7787,3108.9,3108.4,0.7939]
[1732088409589,0.7787,3108.9,3108.5,3.21692]
[1732088410622,0.7787,3108.9,3108.4,4.01096]
[1732088410826,0.7787,3108.9,3108.3,3.2171]
[1732088411118,0.7787,3108.9,3108.7,3.21676]
[1732088411424,0.7787,3108.9,3108.5,3.2169]
[1732088411789,0.7787,3108.9,3108.3,3.21713]
[1732088411993,3.99527,3108.9,3108.2,3.0]
[1732088412185,3.21684,3108.7,3108.1,3.21732]
[1732088412516,3.97049,3108.8,3108.2,3.21721]
[1732088413811,3.97049,3108.8,3108.1,3.21732]
[1732088414005,3.97049,3108.8,3108.3,3.21716]
[1732088417090,0.7538,3108.7,3108.0,3.0]
[1732088417394,3.21704,3108.5,3108.0,3.0]
[1732088417624,0.7538,3108.4,3107.8,3.0]
[1732088417859,3.21722,3108.3,3107.8,3.0]
[1732088418200,3.21734,3108.2,3107.7,3.21775]
[1732088418429,0.7538,3108.1,3107.7,3.21775]
[1732088419521,3.97127,3108.1,3107.6,3.0]
[1732088419726,3.21758,3108.0,3107.6,3.0]
[1732088419892,3.21758,3108.0,3107.4,3.0]
[1732088420293,3.21758,3108.0,3107.4,6.2181]
[1732088420848,3.21758,3108.0,3107.6,3.0]
[1732088421665,3.21758,3108.0,3107.3,3.21815]
[1732088421817,0.7538,3107.9,3107.4,3.0]
[1732088422128,3.97141,3107.9,3107.3,3.21815]
[1732088422513,3.21773,3107.8,3107.3,3.21815]
[1732088422754,4.48414059,3107.9,3107.3,3.21815]
[1732088422930,1.26651059,3107.9,3107.3,3.21815]
[1732088423129,1.26651059,3107.9,3107.2,3.0]
[1732088423130,3.21794,3107.6,3107.2,3.0]
[1732088423334,0.7538,3107.5,3107.0,3.0]
[1732088423856,0.7538,3107.5,3107.0,6.91623]
[1732088424227,0.7538,3107.5,3107.1,3.21842]
[1732088424541,0.7538,3107.5,3107.2,3.0]
[1732088429188,3.21867,3106.9,3106.4,3.21909]
[1732088429395,4.04795,3107.0,3106.4,3.21909]
[1732088429572,3.21866,3106.9,3106.4,3.21909]
[1732088429873,3.21866,3106.9,3106.3,3.21923]
[1732088430385,3.21866,3106.9,3106.4,3.21915]
[1732088430878,0.8294,3107.0,3106.4,3.21915]
[1732088430879,0.8294,3107.0,3106.6,3.21893]
[1732088431047,0.8294,3107.0,3106.6,3.862738]
[1732088431737,0.8294,3107.0,3106.6,7.081618]
[1732088431937,0.8294,3107.0,3106.7,3.21883]
[1732088433076,0.8294,3107.0,3106.8,3.21866]
[1732088433375,0.8294,3107.0,3106.7,3.21883]
[1732088433534,0.8294,3107.0,3106.8,3.21874]
[1732088433976,0.06349508,3107.1,3106.8,3.21874]
[1732088434185,0.06349508,3107.1,3107.0,3.21853]
[1732088434388,0.06349508,3107.1,3107.0,6.21853]
[1732088434558,0.06349508,3107.1,3107.0,7.06668668]
[1732088434767,0.06349508,3107.1,3107.0,7.00233]
[1732088435069,0.06349508,3107.1,3107.0,7.55233]
[1732088435253,0.06349508,3107.1,3107.0,9.61177556]
[1732088439163,0.06349508,3107.1,3107.0,9.06177556]
[1732088443065,0.06349508,3107.1,3107.0,12.99177556]
[1732088444665,0.06349508,3107.1,3107.0,9.61177556]
[1732088448374,0.06349508,3107.1,3107.0,9.93287556]
[1732088448707,0.06349508,3107.1,3107.0,9.61177556]
[1732088450899,0.06349508,3107.1,3107.0,9.06177556]
[1732088451736,0.06349508,3107.1,3107.0,9.61177556]
[1732088452704,0.06349508,3107.1,3107.0,12.99177556]
[1732088454312,5.08e-06,3107.1,3107.0,13.00177556]
[1732088454486,5.08e-06,3107.1,3107.0,14.34665015]
[1732088454681,5.08e-06,3107.1,3107.0,16.36893465]
[1732088454907,5.08e-06,3107.1,3107.0,16.69003465]
[1732088456113,5.08e-06,3107.1,3107.0,14.67272276]
[1732088456862,5.08e-06,3107.1,3107.0,16.23583555]
[1732088458166,5.08e-06,3107.1,3107.0,18.2519965]
[1732088458575,5.08e-06,3107.1,3107.0,16.23583555]
[1732088459061,5.08e-06,3107.1,3107.0,18.92558473]
[1732088459970,5.08e-06,3107.1,3107.0,18.25219035]
[1732088460125,5.08e-06,3107.1,3107.0,18.92558473]
[1732088460555,3.21631,3109.2,3107.0,18.92558473]
[1732088460556,0.7553,3109.1,3108.5,3.2169]
[1732088460761,0.7553,3109.0,3108.5,3.2169]
[1732088461264,3.21647,3109.0,3108.5,3.2169]
[1732088461470,0.7553,3108.9,3108.5,3.2169]
[1732088461627,0.4293401,3108.9,3108.5,3.2169]
[1732088461827,0.7553,3108.8,3108.5,3.2169]
[1732088462351,0.7553,3108.8,3108.6,3.21685]
[1732088463967,0.7553,3108.8,3108.7,3.21677]
[1732088464902,0.7553,3108.8,3108.6,3.21685]
[1732088466420,0.7553,3108.8,3108.5,3.21695]
[1732088468233,0.7553,3108.8,3108.4,3.21707]
[1732088468597,0.7553,3108.7,3108.3,3.0]
[1732088468787,0.7553,3108.7,3108.3,6.21712]
[1732088469228,3.21694,3108.6,3108.0,3.21746]
[1732088469525,0.7553,3108.6,3108.2,3.2172]
[1732088470639,0.7922,3108.5,3108.1,3.21739]
[1732088471536,0.7922,3108.5,3108.2,3.21726]
[1732088472043,0.7922,3108.5,3108.2,6.43448]
[1732088472336,0.7922,3108.5,3108.2,3.21722]
[1732088472701,0.7922,3108.5,3108.3,3.21709]
[1732088474829,0.7922,3108.5,3108.1,3.21739]
[1732088475141,0.7922,3108.5,3108.2,3.21727]
[1732088476139,0.7922,3108.5,3108.2,3.21722]
[1732088476453,0.7922,3108.5,3108.3,3.21718]
[1732088477112,0.7922,3108.5,3108.2,6.43444]
[1732088477500,0.7922,3108.5,3108.3,3.21718]
[1732088479173,0.7922,3108.5,3108.4,3.21708]
[1732088479475,3.21623,3109.3,3108.4,3.21708]
[1732088479476,0.7922,3109.0,3108.6,3.21682]
[1732088480342,3.21679,3108.7,3108.2,3.21723]
[1732088480540,0.7922,3108.6,3108.2,3.21723]
[1732088480979,0.7922,3108.6,3107.6,3.99864]
[1732088480980,3.21704,3108.5,3107.8,3.21763]
[1732088481172,0.7922,3108.4,3107.9,6.21759]
[1732088481592,0.7922,3108.4,3108.0,3.2175]
[1732088482275,0.7922,3108.3,3107.8,3.21763]
[1732088482578,0.7922,3108.2,3107.8,3.21763]
[1732088484179,0.7922,3108.2,3107.4,4.33978294]
[1732088484180,0.7922,3108.0,3107.4,7.55784294]
[1732088484494,0.7922,3107.9,3107.4,7.55784294]
[1732088485453,0.7922,3107.9,3107.4,10.77589294]